bitfinex/quotes_BTCUSD_20250303
["timestamp","ask_amount","ask_price","bid_price","bid_amount"]
[1741025797721,0.001,89719.0,89688.0,0.3]
[1741025797968,0.001,89719.0,89718.0,0.22292]
[1741025798165,0.00201,89743.0,89718.0,0.2935]
[1741025798370,0.37702141,89740.0,89718.0,0.2935]
[1741025798745,0.00201,89743.0,89718.0,0.2935]
[1741025799061,0.00201,89743.0,89718.0,0.2985]
[1741025799309,0.00240847,89743.0,89718.0,0.2935]
[1741025799514,0.00240847,89743.0,89716.0,0.51536972]
[1741025799515,0.222893,89729.0,89716.0,0.51536972]
[1741025799785,0.00240847,89743.0,89718.0,0.002]
[1741025799990,0.37702141,89740.0,89709.0,0.51536972]
[1741025800212,0.37702141,89740.0,89718.0,0.002]
[1741025800418,0.222918,89719.0,89718.0,0.002]
[1741025801390,0.37702141,89740.0,89718.0,0.002]
[1741025801619,0.222918,89719.0,89708.0,0.2935]
[1741025801952,0.222925,89717.0,89716.0,0.005]
[1741025802167,0.222943,89709.0,89708.0,0.2935]
[1741025802570,0.222943,89709.0,89708.0,0.2665]
[1741025802744,0.222943,89709.0,89680.0,0.0001701]
[1741025802745,0.01747497,89709.0,89683.0,0.2665]
[1741025802882,0.01747497,89709.0,89684.0,0.223005]
[1741025803081,0.01747497,89709.0,89683.0,0.2665]
[1741025803298,0.01747497,89709.0,89683.0,0.26661915]
[1741025803498,0.01747497,89709.0,89708.0,0.007]
[1741025803724,0.24041797,89709.0,89708.0,0.007]
[1741025804940,0.24041797,89709.0,89708.0,0.229945]
[1741025804941,0.01747497,89709.0,89708.0,0.229945]
[1741025805396,0.01747497,89709.0,89708.0,0.007]
[1741025805397,0.222943,89709.0,89708.0,0.007]
[1741025805609,0.10444,89736.0,89689.0,0.3]
[1741025805810,0.222946,89708.0,89698.0,0.222968]
[1741025806039,0.37702141,89720.0,89690.0,0.2665]
[1741025806239,0.37702141,89730.0,89690.0,0.2665]
[1741025806387,0.222943,89709.0,89708.0,0.007]
[1741025806585,0.37702141,89720.0,89690.0,0.2665]
[1741025806785,0.222987,89691.0,89690.0,0.2665]
[1741025807222,0.222962,89702.0,89690.0,0.2665]
[1741025807423,0.222973,89697.0,89690.0,0.2665]
[1741025807700,0.05595355,89806.0,89683.0,0.00011915]
[1741025807701,0.1,89724.0,89683.0,0.00011915]
[1741025807902,0.223003,89685.0,89683.0,0.00011915]
[1741025808176,0.37702141,89730.0,89684.0,0.51536972]
[1741025808287,0.1,89727.0,89685.0,1.00487072]
[1741025808490,0.223,89686.0,89685.0,0.2665]
[1741025808755,0.37702141,89710.0,89683.0,0.00011915]
[1741025808928,0.222971,89698.0,89684.0,0.223005]
[1741025809134,0.222987,89691.0,89690.0,0.007]
[1741025809347,0.0003402,89709.0,89683.0,0.00011915]
[1741025809547,0.00229128,89709.0,89684.0,0.001]
[1741025809725,0.222998,89687.0,89684.0,0.001]
[1741025809931,0.223002,89685.0,89684.0,0.001]
[1741025810112,0.222992,89690.0,89684.0,0.001]
[1741025810308,0.222978,89695.0,89683.0,0.00011915]
[1741025810507,0.222978,89695.0,89680.0,0.0001701]
[1741025810508,0.03309975,89694.0,89646.0,0.01454085]
[1741025810783,0.323097,89647.0,89646.0,0.00011868]
[1741025811091,0.323097,89647.0,89566.0,0.1177]
[1741025811092,0.86647485,89632.0,89559.0,0.002]
[1741025811387,0.1,89608.0,89583.0,0.01234662]
[1741025811680,0.1,89617.0,89583.0,0.01234662]
[1741025811837,0.1,89617.0,89590.0,0.1046899]
[1741025812182,0.1,89617.0,89600.0,0.223212]
[1741025812335,0.1,89614.0,89590.0,0.0001699]
[1741025812546,0.1,89609.0,89590.0,0.0001699]
[1741025812737,0.01749269,89615.0,89590.0,0.0001699]
[1741025812943,0.01749269,89615.0,89613.0,0.223181]
[1741025813361,0.01749269,89615.0,89611.0,0.223184]
[1741025813558,0.01749269,89615.0,89613.0,0.223181]
[1741025813766,0.01749269,89615.0,89611.0,0.223185]
[1741025814106,0.01749269,89615.0,89607.0,0.002]
[1741025814310,0.01849269,89615.0,89613.0,0.230181]
[1741025815077,0.00011929,89617.0,89613.0,0.230181]
[1741025815078,0.00011929,89617.0,89616.0,0.223174]
[1741025815234,0.00011929,89617.0,89616.0,0.33771485]
[1741025815436,0.00011929,89617.0,89616.0,0.544674]
[1741025815640,0.00011929,89617.0,89607.0,0.002]
[1741025815839,0.001,89615.0,89614.0,0.223179]
[1741025816153,0.001,89615.0,89613.0,0.223179]
[1741025816348,0.001,89615.0,89607.0,0.002]
[1741025816780,0.00111929,89617.0,89607.0,0.002]
[1741025816982,0.001,89615.0,89614.0,0.007]
[1741025817433,0.00011929,89617.0,89616.0,0.223174]
[1741025818270,0.00011929,89617.0,89615.0,0.223174]
[1741025819250,0.00011929,89617.0,89616.0,0.007]
[1741025819627,0.00011929,89617.0,89607.0,0.002]
[1741025819807,0.00011929,89617.0,89615.0,0.007]
[1741025820208,0.1,89616.0,89615.0,0.007]
[1741025820439,0.323174,89616.0,89615.0,0.007]
[1741025820644,0.1,89608.0,89607.0,0.002]
[1741025820845,0.10195302,89608.0,89607.0,0.002]
[1741025821053,0.1,89608.0,89607.0,0.002]
[1741025821988,0.42535304,89608.0,89607.0,0.002]
[1741025822209,0.4234,89608.0,89607.0,0.002]
[1741025822356,0.323234,89592.0,89591.0,0.0004]
[1741025822557,0.323234,89592.0,89583.0,0.0015699]
[1741025822558,0.323254,89584.0,89583.0,0.0015699]
[1741025822755,0.946654,89584.0,89583.0,0.0015699]
[1741025823240,0.4234,89584.0,89583.0,0.0015699]
[1741025823438,0.3234,89584.0,89583.0,0.0015699]
[1741025823639,0.646654,89584.0,89583.0,0.0015699]
[1741025823841,0.66427499,89584.0,89583.0,0.0015699]
[1741025824051,0.66427499,89584.0,89583.0,0.2248259]
[1741025824052,0.11762099,89584.0,89583.0,0.2248259]
[1741025824282,0.01762099,89584.0,89583.0,0.2248259]
[1741025824528,0.01762099,89584.0,89583.0,0.0015699]
[1741025824800,0.34087499,89584.0,89583.0,0.0015699]
[1741025824999,0.11762099,89584.0,89583.0,0.0015699]
[1741025826010,0.3233732,89584.0,89583.0,0.0015699]
[1741025826209,0.9467732,89584.0,89583.0,0.0015699]
[1741025826657,0.7235192,89584.0,89583.0,0.0015699]
[1741025826827,0.9467732,89584.0,89583.0,0.0015699]
[1741025827418,0.9467732,89584.0,89559.0,0.002]
[1741025827419,0.323306,89563.0,89559.0,0.0013405]
[1741025827611,0.323313,89560.0,89559.0,0.0013405]
[1741025828460,0.823413,89560.0,89559.0,0.0013405]
[1741025828660,0.51455385,89560.0,89559.0,0.0013405]
[1741025828938,0.8664423,89560.0,89559.0,0.0013405]
[1741025829351,0.8664423,89560.0,89533.0,0.223381]
[1741025829352,0.723333,89552.0,89525.0,0.00017]
[1741025829486,0.23788885,89546.0,89525.0,0.00017]
[1741025829813,0.4234,89546.0,89531.0,0.223385]
[1741025830015,0.4234,89546.0,89529.0,0.22339]
[1741025830220,0.4234,89546.0,89529.0,0.223389]
[1741025830395,0.3234,89546.0,89526.0,0.223397]
[1741025830608,0.1,89550.0,89547.0,0.223346]
[1741025830809,0.1,89550.0,89525.0,0.00017]
[1741025830810,0.37702141,89560.0,89540.0,0.223363]
[1741025831008,0.37702141,89560.0,89525.0,0.00017]
[1741025831009,0.323348,89546.0,89525.0,0.00017]
[1741025831209,0.1,89546.0,89525.0,0.00017]
[1741025831376,0.1,89546.0,89543.0,0.223354]
[1741025831574,0.00011915,89561.0,89560.0,0.223313]
[1741025831778,1.5e-07,89561.0,89560.0,0.223313]
[1741025831977,1.5e-07,89561.0,89560.0,0.653313]
[1741025832185,0.1,89616.0,89572.0,0.3]
[1741025832406,0.1,89611.0,89593.0,0.22323]
[1741025832611,0.09678453,89621.0,89566.0,0.1]
[1741025832789,0.1,89610.0,89598.0,0.223219]
[1741025833162,0.0003406,89616.0,89578.0,0.3]
[1741025833378,0.11749492,89608.0,89597.0,0.223221]
[1741025833508,0.1,89607.0,89571.0,0.3]
[1741025833710,0.01749492,89608.0,89607.0,0.223196]
[1741025834113,0.01749492,89608.0,89588.0,0.223244]
[1741025834315,0.01749492,89608.0,89589.0,0.22324]
[1741025834553,0.01749492,89608.0,89565.0,0.10448]
[1741025834554,0.1,89605.0,89565.0,0.10448]
[1741025834755,0.1,89604.0,89590.0,0.223239]
[1741025834917,0.1,89604.0,89587.0,0.223245]
[1741025835114,0.1,89603.0,89584.0,0.223253]
[1741025835318,0.01749485,89601.0,89593.0,0.22323]
[1741025835514,0.1,89603.0,89562.0,0.3]
[1741025835750,0.1,89603.0,89591.0,0.223236]
[1741025835939,0.1,89603.0,89562.0,0.10452]
[1741025836153,0.1,89589.0,89558.0,0.223316]
[1741025836357,0.1,89571.0,89550.0,0.223338]
[1741025836558,0.1,89571.0,89545.0,0.0001707]
[1741025836559,0.1,89569.0,89545.0,0.0001707]
[1741025836776,0.60026241,89590.0,89570.0,0.223289]
[1741025837044,0.1,89569.0,89559.0,0.2234843]
[1741025837213,0.1,89594.0,89593.0,0.223231]
[1741025837515,0.00011964,89594.0,89593.0,0.223231]
[1741025837742,0.00011964,89594.0,89559.0,1.39794649]
[1741025837946,0.00011964,89594.0,89561.0,0.3]
[1741025837947,0.1,89589.0,89561.0,0.3]
[1741025838119,0.1,89588.0,89559.0,0.0001703]
[1741025838295,0.1,89578.0,89568.0,0.223294]
[1741025838476,0.1,89580.0,89579.0,0.223266]
[1741025838678,0.1,89580.0,89577.0,0.223269]
[1741025838904,0.1,89580.0,89579.0,0.223266]
[1741025839246,0.00011964,89594.0,89559.0,0.0001703]
[1741025839247,0.223302,89565.0,89559.0,0.0001703]
[1741025839523,0.1,89560.0,89559.0,0.0001703]
[1741025839823,0.37702141,89577.0,89559.0,0.0001703]
[1741025839824,0.1,89566.0,89559.0,0.0001703]
[1741025840020,0.1,89560.0,89559.0,0.0001703]
[1741025840364,0.1,89560.0,89559.0,0.22388394]
[1741025840564,0.1,89560.0,89559.0,0.00056794]
[1741025840565,0.323313,89560.0,89559.0,0.00056794]
[1741025841578,0.823413,89560.0,89559.0,0.00056794]
[1741025842044,0.83795385,89560.0,89559.0,0.00056794]
[1741025842504,0.1,89526.0,89500.0,0.10498954]
[1741025842705,0.1,89526.0,89521.0,0.00039652]
[1741025843141,0.323408,89522.0,89521.0,0.00039652]
[1741025843346,0.1,89522.0,89521.0,0.00039652]
[1741025843549,0.0175109,89525.0,89524.0,0.223403]
[1741025844730,0.1,89555.0,89524.0,0.3]
[1741025844933,0.1,89565.0,89524.0,0.6215]
[1741025845255,0.1,89563.0,89530.0,0.0486]
[1741025845619,0.1,89562.0,89555.0,0.223325]
[1741025845826,0.1,89559.0,89555.0,0.223325]
[1741025846037,0.1,89555.0,89530.0,0.0486]
[1741025846255,0.1,89555.0,89546.0,0.223348]
[1741025846597,0.1,89555.0,89549.0,0.22334]
[1741025846792,0.1,89555.0,89530.0,0.0486]
[1741025846971,0.1,89555.0,89549.0,0.22345815]
[1741025847176,0.1,89555.0,89549.0,0.00011915]
[1741025847374,0.3082005,89595.0,89549.0,0.00011915]
[1741025847375,0.323338,89550.0,89549.0,0.00011915]
[1741025848183,0.646738,89550.0,89549.0,0.00011915]
[1741025848390,0.721938,89550.0,89549.0,0.00011915]
[1741025849760,1.13647885,89550.0,89549.0,1.5e-07]
[1741025849978,0.1,89510.0,89495.0,0.223474]
[1741025850180,0.10011956,89510.0,89493.0,0.00017]
[1741025850379,0.1,89501.0,89494.0,0.223476]
[1741025850578,0.00011956,89510.0,89508.0,0.223443]
[1741025850811,0.00011956,89510.0,89509.0,0.223441]
[1741025851627,5.6e-07,89510.0,89509.0,0.223441]
[1741025852441,5.6e-07,89510.0,89509.0,0.523441]
[1741025852669,0.1,89559.0,89558.0,0.223318]
[1741025852885,0.1,89554.0,89550.0,0.223337]
[1741025853141,0.1,89559.0,89558.0,0.223318]
[1741025853405,0.09666482,89581.0,89527.0,0.3]
[1741025853406,0.1,89554.0,89528.0,0.3]
[1741025853607,0.09666482,89581.0,89528.0,0.3]
[1741025853608,0.1,89555.0,89530.0,0.3]
[1741025853756,0.1,89557.0,89556.0,0.223323]
[1741025854078,0.1,89555.0,89528.0,0.3215]
[1741025854279,0.1,89555.0,89554.0,0.223328]
[1741025854501,0.1,89555.0,89529.0,0.3]
[1741025854502,0.1,89555.0,89551.0,0.223336]
[1741025854714,0.1,89545.0,89528.0,0.3215]
[1741025854867,0.1,89545.0,89510.0,0.3215]
[1741025855068,0.1,89537.0,89510.0,0.3215]
[1741025855269,0.1,89545.0,89544.0,0.223353]
[1741025855603,0.00011976,89557.0,89510.0,0.3215]
[1741025855604,0.1,89522.0,89510.0,0.223438]
[1741025855819,0.1,89515.0,89509.0,0.033588]
[1741025855999,0.1,89506.0,89500.0,0.05658954]
[1741025856175,0.1,89502.0,89500.0,0.05658954]
[1741025856545,0.00195513,89519.0,89500.0,0.05658954]
[1741025856546,0.1,89501.0,89500.0,0.05658954]
[1741025856743,0.1,89501.0,89500.0,0.28005254]
[1741025856941,0.1,89501.0,89500.0,0.28044906]
[1741025857091,0.1,89501.0,89500.0,0.05698606]
[1741025857635,0.1,89501.0,89500.0,0.28044906]
[1741025857836,0.1,89509.0,89500.0,0.05698606]
[1741025858034,0.1,89505.0,89504.0,0.223451]
[1741025858180,0.37702141,89530.0,89500.0,0.05698606]
[1741025858382,0.1,89503.0,89502.0,0.223458]
[1741025858578,0.0019551,89524.0,89500.0,0.05698606]
[1741025858867,0.1,89511.0,89510.0,0.223438]
[1741025859013,0.1,89511.0,89504.0,0.223452]
[1741025859217,0.1,89503.0,89500.0,0.05698606]
[1741025859415,0.37702141,89520.0,89500.0,0.28044706]
[1741025859416,0.1,89506.0,89500.0,0.28044706]
[1741025859739,0.1,89503.0,89500.0,0.05698606]
[1741025860121,0.1,89501.0,89500.0,0.05698606]
[1741025862412,0.1,89501.0,89500.0,0.27244906]
[1741025862754,0.1,89503.0,89502.0,0.221958]
[1741025862928,0.0753,89537.0,89500.0,0.04098606]
[1741025863154,0.37702141,89540.0,89525.0,0.223401]
[1741025863303,0.1,89528.0,89500.0,0.04098606]
[1741025863540,0.1,89524.0,89500.0,0.04098606]
[1741025863998,0.1,89524.0,89516.0,0.223421]
[1741025864235,0.1,89524.0,89500.0,0.04098606]
[1741025864442,0.1,89524.0,89514.0,0.223428]
[1741025864667,0.1,89501.0,89500.0,0.03904592]
[1741025864892,0.1,89501.0,89500.0,0.26250892]
[1741025865121,0.1,89505.0,89504.0,0.223453]
[1741025865328,0.01751223,89522.0,89500.0,0.03904592]
[1741025865329,0.1,89513.0,89500.0,0.03904592]
[1741025866018,0.328118,89527.0,89500.0,0.03904592]
[1741025866019,0.1,89502.0,89500.0,0.00039652]
[1741025866247,0.1,89502.0,89492.0,0.223482]
[1741025866456,0.00039903,89502.0,89462.0,0.004482]
[1741025866675,0.00039903,89502.0,89501.0,0.223461]
[1741025867478,3e-08,89502.0,89501.0,0.223461]
[1741025867693,0.3234,89526.0,89525.0,0.223401]
[1741025867897,0.1,89534.0,89533.0,0.223381]
[1741025868277,0.3234,89569.0,89545.0,0.223349]
[1741025868480,0.4044,89551.0,89541.0,0.22336]
[1741025868684,0.4044,89551.0,89496.0,0.1487]
[1741025868685,0.1,89545.0,89536.0,0.223372]
[1741025868851,0.1,89540.0,89508.0,0.3]
[1741025869051,0.1,89542.0,89541.0,0.223359]
[1741025869295,0.1,89539.0,89531.0,0.223384]
[1741025869501,0.1,89539.0,89532.0,0.223382]
[1741025869826,0.1,89539.0,89504.0,0.3]
[1741025869827,0.1,89539.0,89530.0,0.223388]
[1741025870385,0.223401,89525.0,89479.0,1.09777619]
[1741025870559,0.4234,89524.0,89522.0,0.223406]
[1741025870810,0.1,89515.0,89483.0,0.335255]
[1741025871017,0.1,89502.0,89497.0,0.22347]
[1741025871215,0.3234,89501.0,89489.0,0.223491]
[1741025871425,0.3234,89501.0,89500.0,0.2236333]
[1741025873108,0.3234,89526.0,89500.0,0.00028986]
[1741025873333,0.3234,89526.0,89522.0,0.223408]
[1741025873554,0.1,89523.0,89510.0,0.223436]
[1741025873755,0.4234,89526.0,89525.0,0.223401]
[1741025874177,0.4234,89526.0,89500.0,0.00028986]
[1741025874372,0.1,89515.0,89500.0,0.00028986]
[1741025874782,0.1,89510.0,89509.0,0.223441]
[1741025875366,0.1,89508.0,89502.0,0.223456]
[1741025875695,0.3234,89513.0,89509.0,0.223441]
[1741025875867,0.3234,89513.0,89512.0,0.223433]
[1741025876248,0.37702141,89540.0,89500.0,0.00028986]
[1741025876249,0.1,89524.0,89523.0,0.223406]
[1741025876862,0.1,89524.0,89520.0,0.223412]
[1741025877035,0.1,89520.0,89518.0,0.223418]
[1741025877262,0.1,89520.0,89519.0,0.223416]
[1741025877456,0.223371,89537.0,89489.0,0.3]
[1741025877659,0.42656,89539.0,89460.0,0.52652141]
[1741025877660,0.1,89516.0,89460.0,0.52652141]
[1741025877863,0.1019552,89516.0,89505.0,0.223448]
[1741025878064,0.1,89510.0,89506.0,0.223447]
[1741025878266,0.1,89510.0,89469.0,1.117701]
[1741025878469,0.1,89502.0,89467.0,0.13629]
[1741025878671,0.1,89502.0,89492.0,0.223481]
[1741025878932,0.1,89502.0,89494.0,0.223477]
[1741025879099,0.1,89500.0,89468.0,0.447087]
[1741025879307,0.1001194,89500.0,89496.0,0.223473]
[1741025879708,0.1001194,89500.0,89498.0,0.223467]
[1741025879991,0.1001194,89500.0,89499.0,0.223466]
[1741025880223,0.1001194,89500.0,89495.0,0.223474]
[1741025880466,0.1001194,89500.0,89499.0,0.223466]
[1741025880683,0.1001194,89500.0,89440.0,0.37902141]
[1741025880684,0.1,89487.0,89445.0,1.118001]
[1741025880956,0.1,89487.0,89467.0,0.335315]
[1741025881180,0.1,89487.0,89478.0,0.223518]
[1741025881420,0.1,89487.0,89442.0,0.076]
[1741025881421,0.1,89487.0,89452.0,0.033616]
[1741025881656,0.0001194,89500.0,89452.0,0.033616]
[1741025881881,0.0001194,89500.0,89499.0,0.223466]
[1741025882121,0.0001194,89500.0,89489.0,0.22349]
[1741025882346,0.1,89487.0,89475.0,0.223524]
[1741025882599,0.1,89487.0,89457.0,0.10288]
[1741025882843,0.1,89487.0,89443.0,0.0471]
[1741025882844,0.37702141,89480.0,89443.0,0.0471]
[1741025883087,0.1,89471.0,89456.0,0.01044516]
[1741025883315,0.1,89472.0,89456.0,0.01044516]
[1741025883548,0.1,89472.0,89468.0,0.223541]
[1741025883783,0.1,89472.0,89456.0,0.23401816]
[1741025883784,0.1,89468.0,89456.0,0.01044516]
[1741025884246,0.17861168,89471.0,89456.0,0.01044516]
[1741025884479,0.00011933,89468.0,89456.0,0.01044516]
[1741025884730,0.00011933,89468.0,89467.0,0.223546]
[1741025885424,3.3e-07,89468.0,89467.0,0.523546]
[1741025886181,3.3e-07,89468.0,89467.0,0.626906]
[1741025886422,3.3e-07,89468.0,89467.0,0.523546]
[1741025886641,3.3e-07,89468.0,89467.0,0.223546]
[1741025886893,3.3e-07,89468.0,89460.0,0.223562]
[1741025887125,3.3e-07,89468.0,89455.0,0.03343255]
[1741025887577,0.17861168,89467.0,89455.0,0.03343255]
[1741025887808,0.17861168,89467.0,89433.0,0.10356]
[1741025888048,0.17861168,89467.0,89441.0,0.223611]
[1741025888300,0.17861168,89467.0,89418.0,0.0498703]
[1741025888301,0.18056789,89466.0,89422.0,0.033626]
[1741025888580,0.223567,89459.0,89435.0,0.223625]
[1741025888785,0.00195655,89458.0,89447.0,0.223595]
[1741025888970,0.17861168,89466.0,89452.0,0.223582]
[1741025889218,0.17861168,89466.0,89418.0,0.0498703]
[1741025889421,0.00195675,89468.0,89392.0,0.002]
[1741025889422,0.1,89408.0,89392.0,0.002]
[1741025889625,0.223766,89379.0,89375.0,0.04631143]
[1741025889839,0.00195832,89378.0,89375.0,0.04631143]
[1741025890050,0.0019582,89383.0,89375.0,0.04631143]
[1741025890257,0.1,89376.0,89375.0,0.04631143]
[1741025890481,0.29315253,89376.0,89375.0,0.04631143]
[1741025890683,1.70515253,89376.0,89375.0,0.04631143]
[1741025890890,1.81731253,89376.0,89375.0,0.04631143]
[1741025891101,1.70277168,89376.0,89375.0,0.04671046]
[1741025891303,1.92654468,89376.0,89375.0,0.04671046]
[1741025891495,0.29077168,89376.0,89375.0,0.04671046]
[1741025891704,0.11216,89376.0,89375.0,0.04671046]
[1741025891905,0.11216,89376.0,89334.0,0.1]
[1741025891906,0.1,89329.0,89314.0,0.00113513]
[1741025892109,0.323911,89321.0,89320.0,0.00393388]
[1741025892311,0.1,89319.0,89318.0,0.48162151]
[1741025892468,0.27861168,89319.0,89318.0,0.46262151]
[1741025892869,0.27861168,89319.0,89318.0,0.46252813]
[1741025893237,0.66477868,89319.0,89318.0,0.46252813]
[1741025893437,0.66477868,89319.0,89252.0,0.1]
[1741025893438,9.334e-05,89265.0,89210.0,0.37702141]
[1741025893672,9.334e-05,89270.0,89211.0,2.802345]
[1741025893863,0.1,89266.0,89265.0,0.224051]
[1741025894068,0.1,89278.0,89277.0,0.224021]
[1741025894275,0.00196132,89287.0,89283.0,0.224006]
[1741025894480,0.00201,89289.0,89285.0,0.222001]
[1741025894481,0.00196036,89288.0,89285.0,0.222001]
[1741025894653,0.00196032,89287.0,89229.0,0.00826528]
[1741025894891,0.00196032,89287.0,89256.0,0.00113851]
[1741025895113,0.00039697,89278.0,89256.0,0.00113851]
[1741025895320,0.00039697,89278.0,89277.0,0.224021]
[1741025895579,0.00039697,89278.0,89275.0,0.224025]
[1741025895580,0.00039697,89278.0,89256.0,0.00113851]
[1741025895816,0.00039697,89278.0,89277.0,0.224021]
[1741025896456,0.00039697,89278.0,89243.0,0.0457]
[1741025896700,0.00039697,89278.0,89277.0,0.224021]
[1741025898307,0.00039697,89278.0,89233.0,0.448264]
[1741025898505,0.00196085,89277.0,89274.0,0.224026]
[1741025898719,0.00039697,89278.0,89230.0,0.37702141]
[1741025898923,0.00039697,89278.0,89211.0,0.033692]
[1741025898924,0.00196081,89277.0,89234.0,0.00113851]
[1741025899263,0.00196081,89277.0,89276.0,0.224024]
[1741025899464,0.00039697,89278.0,89277.0,0.22392759]
[1741025899664,0.00039697,89278.0,89277.0,0.224021]
[1741025900478,0.00039697,89278.0,89276.0,0.224024]
[1741025900690,0.00039697,89278.0,89277.0,0.224021]
[1741025901118,0.15,89272.0,89236.0,0.336187]
[1741025901297,0.15,89272.0,89228.0,0.00017]
[1741025901298,0.17861168,89271.0,89270.0,0.224039]
[1741025901500,0.15,89276.0,89275.0,0.224026]
[1741025901752,0.10039697,89278.0,89274.0,0.224028]
[1741025901753,0.15,89275.0,89274.0,0.224028]
[1741025901957,0.15,89272.0,89245.0,0.00113851]
[1741025902153,0.15,89276.0,89275.0,0.224026]
[1741025902409,0.00039697,89278.0,89277.0,0.224021]
[1741025902550,0.00039697,89278.0,89277.0,0.196021]
[1741025902759,9.7e-07,89278.0,89277.0,0.196021]
[1741025903767,9.7e-07,89278.0,89263.0,0.224056]
[1741025903768,0.01454085,89275.0,89263.0,0.224056]
[1741025903999,0.15,89272.0,89246.0,0.00113851]
[1741025904380,0.37536114,89271.0,89270.0,0.224039]
[1741025904498,0.4734,89271.0,89270.0,0.224039]
[1741025904699,0.3234,89271.0,89270.0,0.224039]
[1741025906364,0.4734,89271.0,89270.0,0.224039]
[1741025906567,0.3234,89271.0,89270.0,0.224039]
[1741025906747,0.15,89268.0,89265.0,0.22405]
[1741025906947,0.05,89267.0,89239.0,0.00113851]
[1741025907148,0.05,89251.0,89239.0,0.00113851]
[1741025907355,0.05,89243.0,89239.0,0.00113851]
[1741025907578,0.3234,89266.0,89239.0,0.00113851]
[1741025907796,0.1,89276.0,89275.0,0.224026]
[1741025908047,0.0467,89277.0,89268.0,0.224043]
[1741025908048,0.1,89273.0,89268.0,0.224043]
[1741025908240,0.0759,89265.0,89204.0,0.52086554]
[1741025908443,0.0759,89265.0,89177.0,0.002]
[1741025908444,0.1079,89237.0,89177.0,0.002]
[1741025908790,0.1,89208.0,89193.0,0.033713]
[1741025908898,0.1,89208.0,89207.0,0.224197]
[1741025909103,0.37702141,89220.0,89171.0,0.033723]
[1741025909312,0.1,89214.0,89172.0,0.1]
[1741025909516,0.00039648,89208.0,89157.0,1.121609]
[1741025909759,0.10039648,89208.0,89160.0,0.033723]
[1741025909956,0.00191872,89207.0,89206.0,0.2242]
[1741025910158,4.8e-07,89208.0,89207.0,0.224197]
[1741025910333,0.1,89258.0,89240.0,0.224114]
[1741025910535,3.3e-07,89241.0,89240.0,0.224114]
[1741025911117,3.3e-07,89241.0,89240.0,0.524114]
[1741025911401,0.00828435,89281.0,89280.0,0.224014]
[1741025911599,0.1,89288.0,89280.0,0.00011899]
[1741025911871,0.324011,89281.0,89280.0,0.00011899]
[1741025912072,0.37702141,89260.0,89242.0,0.00113851]
[1741025912270,0.47702141,89260.0,89242.0,0.00113851]
[1741025912575,0.1,89244.0,89242.0,0.00113851]
[1741025912782,0.43794085,89243.0,89242.0,0.00113851]
[1741025912981,0.3234,89243.0,89242.0,0.00113851]
[1741025913202,0.3234,89243.0,89242.0,0.22515406]
[1741025913416,0.0831,89268.0,89259.0,0.224067]
[1741025913616,0.15684,89276.0,89257.0,0.22407]
[1741025913617,0.37702141,89270.0,89257.0,0.22407]
[1741025913819,0.37702141,89270.0,89242.0,0.00104506]
[1741025913952,0.01768102,89260.0,89255.0,0.224076]
[1741025914154,0.01768102,89260.0,89249.0,0.224091]
[1741025914155,0.01768102,89260.0,89259.0,0.224067]
[1741025914363,0.01768102,89260.0,89259.0,0.204067]
[1741025914562,0.01768102,89260.0,89227.0,0.3]
[1741025914841,0.01768102,89260.0,89255.0,0.224075]
[1741025915066,0.01768102,89260.0,89257.0,0.224071]
[1741025915274,0.01768102,89260.0,89259.0,0.224067]
[1741025915484,0.00011898,89260.0,89259.0,0.224067]
[1741025915685,0.00011898,89260.0,89208.0,0.448389]
[1741025915985,0.47714039,89260.0,89189.0,0.0773]
[1741025916157,0.1,89247.0,89190.0,0.37702141]
[1741025916524,0.00011898,89260.0,89210.0,0.37702141]
[1741025916724,0.00011898,89260.0,89259.0,0.224067]
[1741025917635,9.8e-07,89260.0,89259.0,0.224067]
[1741025919242,4e-07,89289.0,89288.0,0.223994]
[1741025919452,0.00011986,89289.0,89288.0,0.223994]
[1741025919667,0.00011986,89289.0,89240.0,0.37702141]
[1741025919873,0.00011986,89289.0,89218.0,0.1776]
[1741025919874,0.00011986,89289.0,89288.0,0.223994]
[1741025920670,0.00011986,89289.0,89254.0,0.336119]
[1741025920903,0.00011986,89289.0,89230.0,0.41071441]
[1741025920904,0.00011986,89289.0,89230.0,0.0001707]
[1741025921101,0.0003414,89285.0,89230.0,0.0001707]
[1741025921313,0.0003414,89285.0,89284.0,0.224004]
[1741025921719,0.0003414,89285.0,89230.0,0.37719211]
[1741025921983,0.1,89278.0,89230.0,0.0001707]
[1741025922156,0.01454085,89277.0,89261.0,0.224061]
[1741025922328,0.11454085,89277.0,89230.0,0.0001707]
[1741025922543,0.33794085,89276.0,89230.0,0.0001707]
[1741025922731,0.01454085,89264.0,89230.0,0.0001707]
[1741025922911,0.15364,89267.0,89230.0,0.0001707]
[1741025923515,0.01454085,89266.0,89230.0,0.0001707]
[1741025923737,0.1,89247.0,89230.0,0.0001707]
[1741025923955,0.4459,89265.0,89230.0,0.0001707]
[1741025923956,0.1548,89255.0,89230.0,0.0001707]
[1741025924358,0.11454085,89254.0,89230.0,0.0001707]
[1741025924565,0.00156966,89253.0,89190.0,0.37380663]
[1741025924900,0.00156966,89253.0,89252.0,0.224084]
[1741025925177,0.00156966,89264.0,89210.0,0.37702141]
[1741025925473,0.01756327,89256.0,89215.0,0.3]
[1741025925677,0.00156966,89255.0,89211.0,0.3]
[1741025925855,0.01454085,89254.0,89205.0,0.00113847]
[1741025926060,0.00156966,89253.0,89205.0,0.00113847]
[1741025926513,0.00156966,89253.0,89237.0,0.224121]
[1741025926711,0.00156966,89253.0,89235.0,0.224126]
[1741025926912,0.00156966,89253.0,89222.0,0.224158]
[1741025926913,0.11454085,89252.0,89222.0,0.224158]